{"text_format":"1","workbook":"xlsx","n_sheets":5,"sheets":["ORIENTACAO","CLASSIFICACAO_GRUPO","APROVACAO_PROJETO","LICENCIAMENTO","TMARS"],"not_rendered":{"charts":0,"images":1,"macros":1,"external_links":0,"defined_names":10,"comments":0,"pivot_tables":0},"unopened":[],"bounds":{"document_bytes":16777216,"sheet_cells":100000,"rows_first":2000,"rows_last":500,"rows_between":2000,"halvings":0,"cell_chars":16384,"cell_head_chars":4096},"cells_cut":0,"cells_raw":0,"read":"whole","date_system":"1900"}

{"sheet":"ORIENTACAO","index":0,"n_rows":32,"n_cols":15,"rows_kept":32,"cut":false,"hidden":false,"merged":[[7,1,7,18],[10,1,10,18]]}
[null,"PL-001 | Versão: 04 | Data: 11/02/2021"]
[]
[null,"ORIENTAÇÕES GERAIS"]
[]
[]
[]
[]
[null,"Esta planilha eletônica possui o objetivo de auxiliar os estabelecimentos que realizam atividades ecônomicas sujeitas a vigilância sanitária a simularem a taxa a ser paga pelos serviços prestados ou postos a disposição pela Vigilância Sanitária Estadual. "]
[null,"Ressalta-se que a utilização dessa planilha é somente de caráter consultivo/informativo. "]
[]
[null,"i ATENÇÃO: O pagamento da taxa deve ser realizado por meio de DUA eletrônico emitido pelo site da Secretaria de Estado da Fazenda."]
[]
[null,"Siga o passo a passo a seguir:"]
[]
[null,null,"PASSO 01: CONSULTAR GRUPO",null,null,null,null,null,"PASSO 02: SIMULAR TAXAS",null,null,null,null,null,"PASSO 03: EMITIR DUA ELETRÔNICO"]
[]
[]
[]
[]
[]
[]
[]
[]
[]
[]
[]
[]
[]
[]
[]
[null,"Dúvidas ou informações:"]
[null,"*","visa@saude.es.gov.br",null,")","(27) 3636-8227"]

{"sheet":"CLASSIFICACAO_GRUPO","index":1,"n_rows":250,"n_cols":11,"rows_kept":250,"cut":false,"hidden":false,"merged":[]}
[null,{"$f":"ORIENTACAO!B1","v":"PL-001 | Versão: 04 | Data: 11/02/2021"}]
[]
[null,"CONSULTA DE CLASSIFICAÇÃO DE ESTABELECIMENTO EM GRUPO I, II OU III"]
[null,"Portaria Estadual SESA 107-R de 20/12/2018"]
[]
[null,"1. Selecione todas as atividades econômicas sujeitas à Vigilância Sanitária desenvolvidas pelo estabelecimento"]
[null,"2. Clique em \"VER CLASSIFICAÇÃO\"",null,null,"TOTAL DE ATIVIDADES ECONÔMICAS SELECIONADAS:",{"$f":"J247","v":1}]
[null,null,"SUBCLASSE","ATIVIDADE ECONÔMICA",null,null,null,"Grupo\nLei 7001/01","SELEÇÃO","CÁLCULO"]
[null,null,"0892-4/03","Refino e outros tratamentos do sal",null,null,null,2,false,{"$f":"IF(I9=TRUE,H9,0)","v":0},false]
[null,null,"1031-7/00","Fabricação de conservas de frutas",null,null,null,2,false,{"$f":"IF(I10=TRUE,H10,0)","v":0},false]
[null,null,"1032-5/01","Fabricação de conservas de palmito",null,null,null,2,false,0,false]
[null,null,"1032-5/99","Fabricação de conservas de legumes e outros vegetais, exceto palmito",null,null,null,2,false,0,false]
[null,null,"1041-4/00","Fabricação de óleos vegetais em bruto, exceto óleo de milho",null,null,null,2,false,0,false]
[null,null,"1042-2/00","Fabricação de óleos vegetais refinados, exceto óleo de milho",null,null,null,2,false,0,false]
[null,null,"1043-1/00","Fabricação de margarina e outras gorduras vegetais e de óleos não-comestíveis de animais",null,null,null,2,false,0,false]
[null,null,"1053-8/00","Fabricação de sorvetes e outros gelados comestíveis",null,null,null,2,false,0,false]
[null,null,"1061-9/01","Beneficiamento de arroz",null,null,null,2,false,0,false]
[null,null,"1061-9/02","Fabricação de produtos do arroz",null,null,null,2,false,0,false]
[null,null,"1062-7/00","Moagem de trigo e fabricação de derivados",null,null,null,2,false,0,false]
[null,null,"1063-5/00","Fabricação de farinha de mandioca e derivados",null,null,null,2,false,0,false]
[null,null,"1064-3/00","Fabricação de farinha de milho e derivados, exceto óleos de milho",null,null,null,2,false,0,false]
[null,null,"1065-1/01","Fabricação de amidos e féculas de vegetais",null,null,null,2,false,0,false]
[null,null,"1065-1/02","Fabricação de óleo de milho em bruto",null,null,null,2,false,0,false]
[null,null,"1065-1/03","Fabricação de óleo de milho refinado",null,null,null,2,false,0,false]
[null,null,"1069-4/00","Moagem e fabricação de produtos de origem vegetal não especificados anteriormente",null,null,null,2,false,0,false]
[null,null,"1071-6/00","Fabricação de açúcar em bruto",null,null,null,2,false,0,false]
[null,null,"1072-4/01","Fabricação de açúcar de cana refinado",null,null,null,2,false,0,false]
[null,null,"1072-4/02","Fabricação de açúcar de cereais (dextrose) e de beterraba",null,null,null,2,false,0,false]
[null,null,"1081-3/01","Beneficiamento de café",null,null,null,2,false,0,false]
[null,null,"1081-3/02","Torrefação e moagem de café",null,null,null,2,false,0,false]
[null,null,"1082-1/00","Fabricação de produtos à base de café",null,null,null,2,false,0,false]
[null,null,"1091-1/01","Fabricação de produtos de panificação Industrial",null,null,null,2,false,0,false]
[null,null,"1091-1/02","Fabricação de produtos de padaria e confeitaria com predominância de produção própria",null,null,null,1,false,0,false]
[null,null,"1092-9/00","Fabricação de biscoitos e bolachas",null,null,null,2,false,0,false]
[null,null,"1093-7/01","Fabricação de produtos derivados do cacau e de chocolates",null,null,null,2,false,0,false]
[null,null,"1093-7/02","Fabricação de frutas cristalizadas, balas e semelhantes",null,null,null,2,false,0,false]
[null,null,"1094-5/00","Fabricação de massas alimentícias",null,null,null,2,false,0,false]
[null,null,"1095-3/00","Fabricação de especiarias, molhos, temperos e condimentos",null,null,null,2,false,0,false]
[null,null,"1096-1/00","Fabricação de alimentos e pratos prontos",null,null,null,2,false,0,false]
[null,null,"1099-6/02","Fabricação de pós alimentícios",null,null,null,2,false,0,false]
[null,null,"1099-6/03","Fabricação de fermentos e leveduras",null,null,null,3,false,0,false]
[null,null,"1099-6/04","Fabricação de gelo comum",null,null,null,2,false,0,false]
[null,null,"1099-6/05","Fabricação de produtos para infusão (chá, mate, etc.)",null,null,null,2,false,0,false]
[null,null,"1099-6/06","Fabricação de adoçantes naturais e artificiais",null,null,null,2,false,0,false]
[null,null,"1099-6/07","Fabricação de alimentos dietéticos e complementos alimentares",null,null,null,2,true,2,false]
[null,null,"1099-6/99","Fabricação de outros produtos alimentícios não especificados anteriormente",null,null,null,2,false,0,false]
[null,null,"1121-6/00","Fabricação de águas envasadas",null,null,null,2,false,0,false]
[null,null,"1122-4/03","Fabricação de refrescos, xaropes e pós para refrescos, exceto refrescos de frutas",null,null,null,2,false,0,false]
[null,null,"1122-4/04","Fabricação de bebidas isotônicas",null,null,null,3,false,0,false]
[null,null,"1122-4/99","Fabricação de outras bebidas não-alcoólicas não especificadas anteriormente",null,null,null,2,false,0,false]
[null,null,"1731-1/00","Fabricação de embalagens de papel",null,null,null,2,false,0,false]
[null,null,"1732-0/00","Fabricação de embalagens de cartolina e papel-cartão",null,null,null,2,false,0,false]
[null,null,"1733-8/00","Fabricação de chapas e de embalagens de papelão ondulado",null,null,null,2,false,0,false]
[null,null,"1742-7/01","Fabricação de fraldas descartáveis",null,null,null,2,false,0,false]
[null,null,"1742-7/02","Fabricação de absorventes higiênicos",null,null,null,2,false,0,false]
[null,null,"2014-2/00","Fabricação de gases industriais",null,null,null,3,false,0,false]
[null,null,"2019-3/99","Fabricação de outros produtos químicos inorgânicos não especificados anteriormente",null,null,null,3,false,0,false]
[null,null,"2029-1/00","Fabricação de produtos químicos orgânicos não especificados anteriormente",null,null,null,3,false,0,false]
[null,null,"2052-5/00","Fabricação de desinfestantes domissanitários",null,null,null,2,false,0,false]
[null,null,"2061-4/00","Fabricação de sabões e detergentes sintéticos",null,null,null,2,false,0,false]
[null,null,"2062-2/00","Fabricação de produtos de limpeza e polimento",null,null,null,2,false,0,false]
[null,null,"2063-1/00","Fabricação de cosméticos, produtos de perfumaria e de higiene pessoal",null,null,null,2,false,0,false]
[null,null,"2071-1/00","Fabricação de tintas, vernizes, esmaltes e lacas",null,null,null,2,false,0,false]
[null,null,"2091-6/00","Fabricação de adesivos e selantes",null,null,null,2,false,0,false]
[null,null,"2093-2/00","Fabricação de aditivos de uso industrial",null,null,null,3,false,0,false]
[null,null,"2110-6/00","Fabricação de produtos farmoquímicos",null,null,null,3,false,0,false]
[null,null,"2121-1/01","Fabricação de medicamentos alopáticos para uso humano",null,null,null,3,false,0,false]
[null,null,"2121-1/02","Fabricação de medicamentos homeopáticos para uso humano",null,null,null,3,false,0,false]
[null,null,"2121-1/03","Fabricação de medicamentos fitoterápicos para uso humano",null,null,null,3,false,0,false]
[null,null,"2123-8/00","Fabricação de preparações farmacêuticas",null,null,null,3,false,0,false]
[null,null,"2219-6/00","Fabricação de artefatos de borracha não especificados anteriormente",null,null,null,2,false,0,false]
[null,null,"2222-6/00","Fabricação de embalagens de material plástico",null,null,null,2,false,0,false]
[null,null,"2312-5/00","Fabricação de embalagens de vidro",null,null,null,2,false,0,false]
[null,null,"2341-9/00","Fabricação de produtos cerâmicos refratários",null,null,null,2,false,{"$f":"IF(I74=TRUE,H74,0)","v":0},false]
[null,null,"2349-4/99","Fabricação de produtos cerâmicos não-refratários não especificados anteriormente",null,null,null,2,false,0,false]
[null,null,"2591-8/00","Fabricação de embalagens metálicas",null,null,null,2,false,0,false]
[null,null,"2660-4/00","Fabricação de aparelhos eletromédicos e eletroterapêuticos e equipamentos de irradiação",null,null,null,2,false,0,false]
[null,null,"2829-1/99","Fabricação de outras máquinas e equipamentos de uso geral não especificados anteriormente, peças e acessórios",null,null,null,2,false,0,false]
[null,null,"3092-0/00","Fabricação de bicicletas e triciclos não-motorizados, peças e acessórios",null,null,null,2,false,0,false]
[null,null,"3250-7/01","Fabricação de instrumentos não-eletrônicos e utensílios para uso médico, cirúrgico, odontológico e de laboratório",null,null,null,2,false,0,false]
[null,null,"3250-7/02","Fabricação de mobiliário para uso médico, cirúrgico, odontológico e de laboratório",null,null,null,2,false,0,false]
[null,null,"3250-7/03","Fabricação de aparelhos e utensílios para correção de defeitos físicos e aparelhos ortopédicos em geral sob encomenda",null,null,null,2,false,0,false]
[null,null,"3250-7/04","Fabricação de aparelhos e utensílios para correção de defeitos físicos e aparelhos ortopédicos em geral, exceto sob encomenda",null,null,null,2,false,0,false]
[null,null,"3250-7/05","Fabricação de materiais para medicina e odontologia",null,null,null,2,false,0,false]
[null,null,"3250-7/06","Serviços de prótese dentária",null,null,null,1,false,0,false]
[null,null,"3250-7/07","Fabricação de artigos ópticos",null,null,null,2,false,0,false]
[null,null,"3250-7/09","Serviço de laboratório óptico",null,null,null,1,false,0,false]
[null,null,"3291-4/00","Fabricação de escovas, pincéis e vassouras",null,null,null,2,false,0,false]
[null,null,"3292-2/02","Fabricação de equipamentos e acessórios para segurança pessoal e profissional",null,null,null,2,false,0,false]
[null,null,"3299-0/06","Fabricação de velas, inclusive decorativas",null,null,null,2,false,0,false]
[null,null,"3600-6/02","Distribuição de água por caminhões",null,null,null,1,false,0,false]
[null,null,"4621-4/00","Comércio atacadista de café em grão",null,null,null,1,false,0,false]
[null,null,"4622-2/00","Comércio atacadista de soja",null,null,null,1,false,0,false]
[null,null,"4623-1/05","Comércio atacadista de cacau",null,null,null,1,false,0,false]
[null,null,"4631-1/00","Comércio atacadista de leite e laticínios",null,null,null,1,false,0,false]
[null,null,"4632-0/01","Comércio atacadista de cereais e leguminosas beneficiados",null,null,null,1,false,0,false]
[null,null,"4632-0/02","Comércio atacadista de farinhas, amidos e féculas",null,null,null,1,false,0,false]
[null,null,"4632-0/03","Comércio atacadista de cereais e leguminosas beneficiados, farinhas, amidos e féculas, com atividade de fracionamento e acondicionamento associada",null,null,null,2,false,0,false]
[null,null,"4633-8/01","Comércio atacadista de frutas, verduras, raízes, tubérculos, hortaliças e legumes frescos",null,null,null,1,false,0,false]
[null,null,"4633-8/02","Comércio atacadista de aves vivas e ovos",null,null,null,1,false,0,false]
[null,null,"4634-6/01","Comércio atacadista de carnes bovinas e suínas e derivados",null,null,null,1,false,0,false]
[null,null,"4634-6/02","Comércio atacadista de aves abatidas e derivados",null,null,null,1,false,0,false]
[null,null,"4634-6/03","Comércio atacadista de pescados e frutos do mar",null,null,null,1,false,0,false]
[null,null,"4634-6/99","Comércio atacadista de carnes e derivados de outros animais",null,null,null,1,false,0,false]
[null,null,"4635-4/01","Comércio atacadista de água mineral",null,null,null,1,false,0,false]
[null,null,"4635-4/02","Comércio atacadista de cerveja, chope e refrigerante",null,null,null,1,false,0,false]
[null,null,"4635-4/03","Comércio atacadista de bebidas com atividade de fracionamento e acondicionamento associada",null,null,null,2,false,0,false]
[null,null,"4635-4/99","Comércio atacadista de bebidas não especificadas anteriormente",null,null,null,1,false,0,false]
[null,null,"4637-1/01","Comércio atacadista de café torrado, moído e solúvel",null,null,null,1,false,0,false]
[null,null,"4637-1/02","Comércio atacadista de açúcar",null,null,null,1,false,0,false]
[null,null,"4637-1/03","Comércio atacadista de óleos e gorduras",null,null,null,1,false,0,false]
[null,null,"4637-1/04","Comércio atacadista de pães, bolos, biscoitos e similares",null,null,null,1,false,0,false]
[null,null,"4637-1/05","Comércio atacadista de massas alimentícias",null,null,null,1,false,0,false]
[null,null,"4637-1/06","Comércio atacadista de sorvetes",null,null,null,1,false,0,false]
[null,null,"4637-1/07","Comércio atacadista de chocolates, confeitos, balas, bombons e semelhantes",null,null,null,1,false,0,false]
[null,null,"4637-1/99","Comércio atacadista especializado em outros produtos alimentícios não especificados anteriormente",null,null,null,1,false,0,false]
[null,null,"4639-7/01","Comércio atacadista de produtos alimentícios em geral",null,null,null,1,false,0,false]
[null,null,"4639-7/02","Comércio atacadista de produtos alimentícios em geral, com atividade de fracionamento e acondicionamento associada",null,null,null,2,false,0,false]
[null,null,"4644-3/01","Comércio atacadista de medicamentos e drogas de uso humano",null,null,null,2,false,0,false]
[null,null,"4645-1/01","Comércio atacadista de instrumentos e materiais para uso médico, cirúrgico, hospitalar e de laboratórios",null,null,null,1,false,0,false]
[null,null,"4645-1/02","Comércio atacadista de próteses e artigos de ortopedia",null,null,null,1,false,0,false]
[null,null,"4645-1/03","Comércio atacadista de produtos odontológicos",null,null,null,1,false,0,false]
[null,null,"4646-0/01","Comércio atacadista de cosméticos e produtos de perfumaria",null,null,null,1,false,0,false]
[null,null,"4646-0/02","Comércio atacadista de produtos de higiene pessoal",null,null,null,1,false,0,false]
[null,null,"4649-4/08","Comércio atacadista de produtos de higiene, limpeza e conservação domiciliar",null,null,null,1,false,0,false]
[null,null,"4649-4/09","Comércio atacadista de produtos de higiene, limpeza e conservação domiciliar, com atividade de fracionamento e acondicionamento associada",null,null,null,2,false,0,false]
[null,null,"4664-8/00","Comércio atacadista de máquinas, aparelhos e equipamentos para uso odonto-médico-hospitalar; partes e peças",null,null,null,1,false,0,false]
[null,null,"4691-5/00","Comércio atacadista de mercadorias em geral, com predominância de produtos alimentícios",null,null,null,1,false,0,false]
[null,null,"4711-3/01","Comércio varejista de mercadorias em geral, com predominância de produtos alimentícios - hipermercados",null,null,null,1,false,0,false]
[null,null,"4711-3/02","Comércio varejista de mercadorias em geral, com predominância de produtos alimentícios - supermercados",null,null,null,1,false,0,false]
[null,null,"4712-1/00","Comércio varejista de mercadorias em geral, com predominância de produtos alimentícios - minimercados, mercearias e armazéns",null,null,null,1,false,0,false]
[null,null,"4721-1/02","Padaria e confeitaria com predominância de revenda",null,null,null,1,false,0,false]
[null,null,"4721-1/03","Comércio varejista de laticínios e frios",null,null,null,1,false,0,false]
[null,null,"4721-1/04","Comércio varejista de doces, balas, bombons e semelhantes",null,null,null,1,false,0,false]
[null,null,"4722-9/01","Comércio varejista de carnes - açougues",null,null,null,1,false,0,false]
[null,null,"4722-9/02","Peixaria",null,null,null,1,false,0,false]
[null,null,"4723-7/00","Comércio varejista de bebidas",null,null,null,1,false,0,false]
[null,null,"4724-5/00","Comércio varejista de hortifrutigranjeiros",null,null,null,1,false,{"$f":"IF(I138=TRUE,H138,0)","v":0},false]
[null,null,"4729-6/02","Comércio varejista de mercadorias em lojas de conveniência",null,null,null,1,false,0,false]
[null,null,"4729-6/99","Comércio varejista de produtos alimentícios em geral ou especializado em produtos alimentícios não especificados anteriormente",null,null,null,1,false,0,false]
[null,null,"4771-7/01","Comércio varejista de produtos farmacêuticos, sem manipulação de fórmulas",null,null,null,1,false,0,false]
[null,null,"4771-7/02","Comércio varejista de produtos farmacêuticos, com manipulação de fórmulas",null,null,null,2,false,0,false]
[null,null,"4771-7/03","Comércio varejista de produtos farmacêuticos homeopáticos",null,null,null,2,false,0,false]
[null,null,"4772-5/00","Comércio varejista de cosméticos, produtos de perfumaria e de higiene pessoal",null,null,null,1,false,0,false]
[null,null,"4773-3/00","Comércio varejista de artigos médicos e ortopédicos",null,null,null,1,false,0,false]
[null,null,"4774-1/00","Comércio varejista de artigos de óptica",null,null,null,1,false,0,false]
[null,null,"4789-0/05","Comércio varejista de produtos saneantes domissanitários",null,null,null,1,false,0,false]
[null,null,"4789-0/99","Comércio varejista de outros produtos não especificados anteriormente",null,null,null,1,false,0,false]
[null,null,"4930-2/01","Transporte rodoviário de carga, exceto produtos perigosos e mudanças, municipal",null,null,null,1,false,0,false]
[null,null,"4930-2/02","Transporte rodoviário de carga, exceto produtos perigosos e mudanças, intermunicipal, interestadual e internacional",null,null,null,1,false,0,false]
[null,null,"5211-7/01","Armazéns gerais - emissão de warrant",null,null,null,1,false,0,false]
[null,null,"5211-7/99","Depósitos de mercadorias para terceiros, exceto armazéns gerais e guarda-móveis",null,null,null,1,false,0,false]
[null,null,"5510-8/01","Hotéis",null,null,null,1,false,0,false]
[null,null,"5510-8/02","Apart-hoteis",null,null,null,1,false,0,false]
[null,null,"5510-8/03","Motéis",null,null,null,1,false,0,false]
[null,null,"5590-6/01","Albergues, exceto assistenciais",null,null,null,1,false,0,false]
[null,null,"5590-6/03","Pensões (alojamento)",null,null,null,1,false,0,false]
[null,null,"5590-6/99","Outros alojamentos não especificados anteriormente",null,null,null,1,false,0,false]
[null,null,"5611-2/01","Restaurantes e similares",null,null,null,1,false,0,false]
[null,null,"5611-2/03","Lanchonetes, casas de chá, de sucos e similares",null,null,null,1,false,0,false]
[null,null,"5611-2/04","Bares e outros estabelecimentos especializados em servir bebidas, sem entretenimento",null,null,null,1,false,{"$f":"IF(I161=TRUE,H161,0)","v":0},false]
[null,null,"5611-2/05","Bares e outros estabelecimentos especializados em servir bebidas, com entrenenimento",null,null,null,1,false,0,false]
[null,null,"5612-1/00","Serviços ambulantes de alimentação",null,null,null,1,false,0,false]
[null,null,"5620-1/01","Fornecimento de alimentos preparados preponderantemente para empresas",null,null,null,2,false,0,false]
[null,null,"5620-1/02","Serviços de alimentação para eventos e recepções - bufê",null,null,null,1,false,0,false]
[null,null,"5620-1/03","Cantinas - serviços de alimentação privativos",null,null,null,1,false,0,false]
[null,null,"5620-1/04","Fornecimento de alimentos preparados preponderantemente para consumo domiciliar",null,null,null,1,false,0,false]
[null,null,"6203-1/00","Desenvolvimento e licenciamento de programas de computador não-customizáveis",null,null,null,2,false,0,false]
[null,null,"7120-1/00","Testes e análises técnicas",null,null,null,2,false,0,false]
[null,null,"7500-1/00","Atividades veterinárias",null,null,null,2,false,0,false]
[null,null,"7729-2/03","Aluguel de material médico",null,null,null,1,false,0,false]
[null,null,"8122-2/00","Imunização e controle de pragas urbanas",null,null,null,2,false,0,false]
[null,null,"8129-0/00","Atividades de limpeza não especificadas anteriormente",null,null,null,3,false,0,false]
[null,null,"8292-0/00","Envasamento e empacotamento sob contrato",null,null,null,2,false,0,false]
[null,null,"8511-2/00","Educação infantil - creche",null,null,null,1,false,0,false]
[null,null,"8512-1/00","Educação infantil - pré-escola",null,null,null,1,false,0,false]
[null,null,"8513-9/00","Ensino fundamental",null,null,null,1,false,0,false]
[null,null,"8591-1/00","Ensino de esportes",null,null,null,1,false,0,false]
[null,null,"8599-6/99","Outras atividades de ensino não especificadas anteriormente",null,null,null,1,false,0,false]
[null,null,"8610-1/01","Atividades de atendimento hospitalar, exceto pronto-socorro e unidades para atendimento a urgências",null,null,null,3,false,0,false]
[null,null,"8610-1/02","Atividades de atendimento em pronto-socorro e unidades hospitalares para atendimento a urgências",null,null,null,3,false,0,false]
[null,null,"8621-6/01","UTI móvel",null,null,null,2,false,0,false]
[null,null,"8621-6/02","Serviços móveis de atendimento a urgências, exceto por UTI móvel",null,null,null,2,false,0,false]
[null,null,"8622-4/00","Serviços de remoção de pacientes, exceto os serviços móveis de atendimento a urgências",null,null,null,1,false,0,false]
[null,null,"8630-5/01","Atividade médica ambulatorial com recursos para realização de procedimentos cirúrgicos",null,null,null,2,false,0,false]
[null,null,"8630-5/02","Atividade médica ambulatorial com recursos para realização de exames complementares",null,null,null,2,false,0,false]
[null,null,"8630-5/03","Atividade médica ambulatorial restrita a consultas",null,null,null,1,false,0,false]
[null,null,"8630-5/04","Atividade odontológica",null,null,null,2,false,0,false]
[null,null,"8630-5/06","Serviços de vacinação e imunização humana",null,null,null,2,false,0,false]
[null,null,"8630-5/07","Atividades de reprodução humana assistida",null,null,null,3,false,0,false]
[null,null,"8630-5/99","Atividades de atenção ambulatorial não especificadas anteriormente",null,null,null,2,false,0,false]
[null,null,"8640-2/01","Laboratórios de anatomia patológica e citológica",null,null,null,2,false,0,false]
[null,null,"8640-2/02","Laboratórios clínicos",null,null,null,2,false,0,false]
[null,null,"8640-2/03","Serviços de diálise e nefrologia",null,null,null,3,false,0,false]
[null,null,"8640-2/04","Serviços de tomografia",null,null,null,3,false,0,false]
[null,null,"8640-2/05","Serviços de diagnóstico por imagem com uso de radiação ionizante, exceto tomografia",null,null,null,3,false,0,false]
[null,null,"8640-2/06","Serviços de ressonância magnética",null,null,null,3,false,0,false]
[null,null,"8640-2/07","Serviços de diagnóstico por imagem sem uso de radiação ionizante, exceto ressonância magnética",null,null,null,2,false,0,false]
[null,null,"8640-2/08","Serviços de diagnóstico por registro gráfico - ECG, EEG e outros exames análogos",null,null,null,2,false,0,false]
[null,null,"8640-2/09","Serviços de diagnóstico por métodos ópticos - endoscopia e outros exames análogos",null,null,null,2,false,0,false]
[null,null,"8640-2/10","Serviços de quimioterapia",null,null,null,3,false,0,false]
[null,null,"8640-2/11","Serviços de radioterapia",null,null,null,3,false,0,false]
[null,null,"8640-2/12","Serviços de hemoterapia",null,null,null,3,false,{"$f":"IF(I203=TRUE,H203,0)","v":0},false]
[null,null,"8640-2/13","Serviços de litotripsia",null,null,null,3,false,0,false]
[null,null,"8640-2/14","Serviços de bancos de células e tecidos humanos",null,null,null,3,false,0,false]
[null,null,"8640-2/99","Atividades de serviços de complementação diagnóstica e terapêutica não especificadas anteriormente",null,null,null,2,false,0,false]
[null,null,"8650-0/01","Atividades de enfermagem",null,null,null,2,false,0,false]
[null,null,"8650-0/02","Atividades de profissionais da nutrição",null,null,null,1,false,0,false]
[null,null,"8650-0/03","Atividades de psicologia e psicanálise",null,null,null,1,false,0,false]
[null,null,"8650-0/04","Atividades de fisioterapia",null,null,null,1,false,0,false]
[null,null,"8650-0/05","Atividades de terapia ocupacional",null,null,null,1,false,0,false]
[null,null,"8650-0/06","Atividades de fonoaudiologia",null,null,null,1,false,0,false]
[null,null,"8650-0/07","Atividades de terapia de nutrição enteral e parenteral",null,null,null,3,false,0,false]
[null,null,"8650-0/99","Atividades de profissionais da área de saúde não especificadas anteriormente",null,null,null,2,false,0,false]
[null,null,"8690-9/01","Atividades de práticas integrativas e complementares em saúde humana",null,null,null,1,false,0,false]
[null,null,"8690-9/02","Atividades de bancos de leite humano",null,null,null,3,false,0,false]
[null,null,"8690-9/03","Atividades de acupuntura",null,null,null,1,false,0,false]
[null,null,"8690-9/04","Atividades de podologia",null,null,null,1,false,0,false]
[null,null,"8690-9/99","Outras atividades de atenção à saúde humana não especificadas anteriormente",null,null,null,2,false,0,false]
[null,null,"8711-5/01","Clínicas e residências geriátricas",null,null,null,2,false,0,false]
[null,null,"8711-5/02","Instituições de longa permanência para idosos",null,null,null,2,false,0,false]
[null,null,"8711-5/03","Atividades de assistência a deficientes físicos, imunodeprimidos e convalescentes",null,null,null,2,false,0,false]
[null,null,"8711-5/04","Centros de apoio a pacientes com câncer e com AIDS",null,null,null,1,false,0,false]
[null,null,"8711-5/05","Condomínios residenciais para idosos",null,null,null,1,false,0,false]
[null,null,"8712-3/00","Atividades de fornecimento de infra-estrutura de apoio e assistência a paciente no domicílio",null,null,null,3,false,0,false]
[null,null,"8720-4/01","Atividades de centros de assistência psicossocial",null,null,null,1,false,0,false]
[null,null,"8720-4/99","Atividades de assistência psicossocial e à saúde a portadores de distúrbios psíquicos, deficiência mental e dependência química não especificadas anteriormente",null,null,null,3,false,0,false]
[null,null,"8730-1/01","Orfanatos",null,null,null,1,false,0,false]
[null,null,"8730-1/99","Atividades de assistência social prestadas em residências coletivas e particulares não especificadas anteriormente",null,null,null,2,false,0,false]
[null,null,"9312-3/00","Clubes sociais, esportivos e similares",null,null,null,1,false,0,false]
[null,null,"9313-1/00","Atividades de condicionamento físico",null,null,null,1,false,0,false]
[null,null,"9321-2/00","Parques de diversão e parques temáticos",null,null,null,1,false,0,false]
[null,null,"9601-7/01","Lavanderias",null,null,null,2,false,0,false]
[null,null,"9601-7/03","Toalheiros",null,null,null,2,false,{"$f":"IF(I234=TRUE,H234,0)","v":0},false]
[null,null,"9602-5/01","Cabeleireiros, manicure e pedicure",null,null,null,1,false,0,false]
[null,null,"9602-5/02","Atividades de estética e outros serviços de cuidados com a beleza",null,null,null,2,false,0,false]
[null,null,"9603-3/01","Gestão e manutenção de cemitérios",null,null,null,1,false,0,false]
[null,null,"9603-3/02","Serviços de cremação",null,null,null,1,false,0,false]
[null,null,"9603-3/04","Serviços de funerárias",null,null,null,1,false,0,false]
[null,null,"9603-3/05","Serviços de somatoconservação",null,null,null,1,false,0,false]
[null,null,"9609-2/05","Atividades de sauna e banhos",null,null,null,1,false,0,false]
[null,null,"9609-2/06","Serviços de tatuagem e colocação de piercing",null,null,null,1,false,0,false]
[]
[null,null,null,null,null,null,null,null,"Total Grupo 3",{"$f":"COUNTIF($J$9:$J$242,3)","v":0},{"$f":"IF(J244>0,5,0)","v":0}]
[null,null,null,null,null,null,null,null,"Total Grupo 2",{"$f":"COUNTIF($J$9:$J$242,2)","v":1},{"$f":"IF(J245>0,3,0)","v":3}]
[null,null,null,null,null,null,null,null,"Total Grupo 1",{"$f":"COUNTIF($J$9:$J$242,1)","v":0},{"$f":"IF(J246>0,1,0)","v":0}]
[null,null,null,null,null,null,null,null,"SOMA GERAL",{"$f":"SUM(J244:J246)","v":1},{"$f":"SUM(K244:K246)","v":3}]
[null,null,null,"Classificação do estabelecimento:"]
[null,null,null,{"$f":"IF(K247>0,IF(K247>4,\"GRUPO III\",IF(K247<2,\"GRUPO I\",\"GRUPO II\")),\" \")","v":"GRUPO II"}]
[null,null,null,"*Recomenda-se habilitar as macros da planilha para utilização de todas as funcionalidades."]

{"sheet":"APROVACAO_PROJETO","index":2,"n_rows":239,"n_cols":12,"rows_kept":239,"cut":false,"hidden":false,"merged":[[16,1,18,3],[22,11,22,16]]}
[null,{"$f":"ORIENTACAO!B1","v":"PL-001 | Versão: 04 | Data: 11/02/2021"}]
[]
[null,"SIMULAÇÃO DO VALOR DE TAXA DE APROVAÇÃO DE PROJETO"]
[]
[]
[null,"TAXA: APROVAÇÃO DO PROJETO, CONCESSÃO DE HABITE-SE SANITÁRIO"]
[null,"Lei Estadual nº 7.001/2001 (Tabela V)"]
[]
[null,"Preencha os campos com as informações do estabelecimento:"]
[]
[null,"VRTE EM VIGÊNCIA:",null,null,4.0350000000000001,"consultar o valor atualizado em:"]
[]
[null,"Faturamento anual da empresa:",null,null,null,"(referente aos últimos 12 meses)"]
[]
[null,"Total da área construída (m²):",null,null,null,"m²",{"$f":"CONCATENATE(C25, \"     \",E25)","v":"       "}]
[]
[null,"Selecione o Grupo do Estabelecimento:\n(conforme critérios da Portaria Estadual SESA 107-R de 20/12/2018)\n",null,null,"Grupo I"]
[null,null,null,null,"Grupo II"]
[null,null,null,null,"Grupo III"]
[]
[null,"CRITÉRIOS CONSIDERADOS:"]
[null,null,{"$f":"IF(E15>0,IF(F40>0,E35,IF(F39>0,E34,E33)),\" \")","v":" "},null,null,null,null,null,null,null,null,"Valor da taxa a ser paga pelo estabelecimento*:"]
[null,null,{"$f":"IF(E13>0,IF(J38>0,K38,IF(J39>0,K39,IF(J40>0,K40,K41))),\" \")","v":" "},null,null,null,null,null,null,null,null,{"$f":"IF(J42>0,I48,I42)","v":2421}]
[null,null,"Valor da taxa (sem redução)*:",null,{"$f":"I42","v":2421},null,null,null,null,null,null,"*Valores aproximados"]
[null,null,{"$f":"IF(E15>300,\"Quantidade excedente (em 100 m²):\",\" \")","v":" "},null,{"$f":"IF(E15>300,ROUNDUP((E15-300)/100,0),\" \")","v":" "}]
[]
[]
[]
[]
[]
[]
[null,"Grupo I","Grupo II","Grupo III"]
[null,600,700,900,"Estabelecimento com área até 100 m²",null,null,"Grupo do estabelecimento:",null,null,1,{"$f":"K33","v":1}]
[null,700,900,1100,"Estabelecimento com área de 101 até 300 m²"]
[null,20,30,40,"Estabelecimento com área acima de 300 m²"]
[null,{"$f":"ROUND(B35*$E$11,2)","v":80.7},{"$f":"ROUND(C35*$E$11,2)","v":121.05},161.4]
[null,null,null,null,"Grupo",1,2,3,null,"REDUÇÃO"]
[null,null,null,null,"Até 100",{"$f":"IF($H$60<=100,B33*$E$11,0)","v":2421},{"$f":"IF($H$60<=100,C33*$E$11,0)","v":2824.5},{"$f":"IF($H$60<=100,D33*$E$11,0)","v":3631.5},null,{"$f":"IF(AND(H58>0,H58<=144000),0.8,0)","v":0},"O estabelecimento tem direito a 80% de redução da taxa"]
[null,null,null,null,"Entre 101 a 300",{"$f":"IF($H$60>100,B34*$E$11,0)","v":0},{"$f":"IF($H$60>100,C34*$E$11,0)","v":0},{"$f":"IF($H$60>100,D34*$E$11,0)","v":0},null,{"$f":"IF(AND(H58>144000,H58<=840000),0.6,0)","v":0},"O estabelecimento tem direito a 60% de redução da taxa"]
[null,null,null,null,"Acima 300",{"$f":"IF($H$60>300,B36*$H$61,0)","v":0},{"$f":"IF($H$60>300,C36*$H$61,0)","v":0},{"$f":"IF($H$60>300,D36*$H$61,0)","v":0},null,{"$f":"IF(AND(H58>840000,H58<=1200000),0.4,0)","v":0},"O estabelecimento tem direito a 40% de redução da taxa"]
[null,null,null,null,"TOTAL SEM REDUÇÃO",{"$f":"SUM(F38:F40)","v":2421},{"$f":"SUM(G38:G40)","v":2824.5},{"$f":"SUM(H38:H40)","v":3631.5},null,{"$f":"IF(AND(H58=0,H58>1200000),1,0)","v":0},"O estabelecimento NÃO tem direito a redução da taxa"]
[null,null,null,null,"Taxa do estabelecimento",{"$f":"IF($L$33=F37,F41,0)","v":2421},{"$f":"IF($K$33=G37,G41,0)","v":0},{"$f":"IF($K$33=H37,H41,0)","v":0},{"$f":"SUM(F42:H42)","v":2421},{"$f":"SUM(J38:J41)","v":0},"Fator Multiplicador"]
[null,null,null,null,"Desconto"]
[null,null,null,null,"Até 100",{"$f":"F38-F38*$J$42","v":2421},{"$f":"G38-G38*$J$42","v":2824.5},3631.5]
[null,null,null,null,"Entre 101 a 300",{"$f":"F39-F39*$J$42","v":0},0,0]
[null,null,null,null,"Acima 300",{"$f":"IF($H$60>300,ROUND(B35*$E$11*(1-$J$42),2)*$H$61,0)","v":0},{"$f":"IF($H$60>300,ROUND(C35*$E$11*(1-$J$42),2)*$H$61,0)","v":0},{"$f":"IF($H$60>300,ROUND(D35*$E$11*(1-$J$42),2)*$H$61,0)","v":0}]
[null,null,null,null,"TOTAL COM REDUÇÃO",{"$f":"SUM(F44:F46)","v":2421},{"$f":"SUM(G44:G46)","v":2824.5},3631.5]
[null,null,null,null,"Taxa do estabelecimento",{"$f":"IF($L$33=F37,F47,0)","v":2421},{"$f":"IF($L$33=G37,G47,0)","v":0},0,{"$f":"SUM(F48:H48)","v":2421}]
[]
[]
[]
[]
[]
[]
[]
[]
[]
[null,null,"Faturamento anual da empresa em VRTE:",null,null,null,null,{"$f":"E13/E11","v":0}]
[]
[null,null,"Correção da área para multiplo de 100:",null,null,null,null,{"$f":"CEILING(E15,100)","v":0}]
[null,null,"Fator de cálculo",null,null,null,null,{"$f":"(H60-300)/100","v":-3}]
[]
[]
[]
[]
[]
[]
[]
[]
[]
[]
[]
[]
[]
[]
[]
[]
[]
[]
[]
[]
[]
[]
[]
[]
[]
[]
[]
[]
[]
[]
[]
[]
[]
[]
[]
[]
[]
[]
[]
[]
[]
[]
[]
[]
[]
[]
[]
[]
[]
[]
[]
[]
[]
[]
[]
[]
[]
[]
[]
[]
[]
[]
[]
[]
[]
[]
[]
[]
[]
[]
[]
[]
[]
[]
[]
[]
[]
[]
[]
[]
[]
[]
[]
[]
[]
[]
[]
[]
[]
[]
[]
[]
[]
[]
[]
[]
[]
[]
[]
[]
[]
[]
[]
[]
[]
[]
[]
[]
[]
[]
[]
[]
[]
[]
[]
[]
[]
[]
[]
[]
[]
[]
[]
[]
[]
[]
[]
[]
[]
[]
[]
[]
[]
[]
[]
[]
[]
[]
[]
[]
[]
[]
[]
[]
[]
[]
[]
[]
[]
[]
[]
[]
[]
[]
[]
[]
[]
[]
[]
[]
[]
[]
[]
[]
[]
[]
[]
[]
[]
[]
[]
[]
[]
[]
[]
[]
[]
[null,null,null,null,null,true]

{"sheet":"LICENCIAMENTO","index":3,"n_rows":239,"n_cols":12,"rows_kept":239,"cut":false,"hidden":false,"merged":[[16,1,18,3],[22,11,22,16]]}
[null,{"$f":"ORIENTACAO!B1","v":"PL-001 | Versão: 04 | Data: 11/02/2021"}]
[]
[null,"SIMULAÇÃO DO VALOR DE TAXA DE LICENCIAMENTO SANITÁRIO"]
[]
[]
[null,"TAXA: CONCESSÃO DE ALVARÁ, LICENÇA OU AUTORIZAÇÃO"]
[null,"Lei Estadual nº 7.001/2001 (Tabela V)"]
[]
[null,"Preencha os campos com as informações do estabelecimento:"]
[]
[null,"VRTE EM VIGÊNCIA:",null,null,4.0350000000000001,"consultar o valor atualizado em:"]
[]
[null,"Faturamento anual da empresa:",null,null,null,"(referente aos últimos 12 meses)"]
[]
[null,"Total da área construída (m²):",null,null,null,"m²",{"$f":"CONCATENATE(C25, \"     \",E25)","v":"       "}]
[]
[null,"Selecione o Grupo do Estabelecimento:\n(conforme critérios da Portaria Estadual SESA 107-R de 20/12/2018)\n",null,null,"Grupo I"]
[null,null,null,null,"Grupo II"]
[null,null,null,null,"Grupo III"]
[]
[null,"CRITÉRIOS CONSIDERADOS:"]
[null,null,{"$f":"IF(E15>0,IF(F40>0,E35,IF(F39>0,E34,E33)),\" \")","v":" "},null,null,null,null,null,null,null,null,"Valor da taxa a ser paga pelo estabelecimento*:"]
[null,null,{"$f":"IF(E13>0,IF(J38>0,K38,IF(J39>0,K39,IF(J40>0,K40,K41))),\" \")","v":" "},null,null,null,null,null,null,null,null,{"$f":"IF(J42>0,I48,I42)","v":2017.5}]
[null,null,"Valor da taxa (sem redução)*:",null,{"$f":"I42","v":2017.5},null,null,null,null,null,null,"*Valores aproximados"]
[null,null,{"$f":"IF(E15>300,\"Quantidade excedente (em 100 m²):\",\" \")","v":" "},null,{"$f":"IF(E15>300,ROUNDUP((E15-300)/100,0),\" \")","v":" "}]
[]
[]
[]
[]
[]
[]
[null,"Grupo I","Grupo II","Grupo III"]
[null,500,1000,1500,"Estabelecimento com área até 100 m²",null,null,"Grupo do estabelecimento:",null,null,1,{"$f":"K33","v":1}]
[null,800,1300,1800,"Estabelecimento com área de 101 até 300 m²"]
[null,50,80,100,"Estabelecimento com área acima de 300 m²"]
[null,{"$f":"ROUND(B35*$E$11,2)","v":201.75},{"$f":"ROUND(C35*$E$11,2)","v":322.8},403.5]
[null,null,null,null,"Grupo",1,2,3,null,"REDUÇÃO"]
[null,null,null,null,"Até 100",{"$f":"IF($H$60<=100,B33*$E$11,0)","v":2017.5},{"$f":"IF($H$60<=100,C33*$E$11,0)","v":4035},{"$f":"IF($H$60<=100,D33*$E$11,0)","v":6052.5},null,{"$f":"IF(AND(H58>0,H58<=144000),0.8,0)","v":0},"O estabelecimento tem direito a 80% de redução da taxa"]
[null,null,null,null,"Entre 101 a 300",{"$f":"IF($H$60>100,B34*$E$11,0)","v":0},{"$f":"IF($H$60>100,C34*$E$11,0)","v":0},{"$f":"IF($H$60>100,D34*$E$11,0)","v":0},null,{"$f":"IF(AND(H58>144000,H58<=840000),0.6,0)","v":0},"O estabelecimento tem direito a 60% de redução da taxa"]
[null,null,null,null,"Acima 300",{"$f":"IF($H$60>300,B36*$H$61,0)","v":0},{"$f":"IF($H$60>300,C36*$H$61,0)","v":0},{"$f":"IF($H$60>300,D36*$H$61,0)","v":0},null,{"$f":"IF(AND(H58>840000,H58<=1200000),0.4,0)","v":0},"O estabelecimento tem direito a 40% de redução da taxa"]
[null,null,null,null,"TOTAL SEM REDUÇÃO",{"$f":"SUM(F38:F40)","v":2017.5},{"$f":"SUM(G38:G40)","v":4035},{"$f":"SUM(H38:H40)","v":6052.5},null,{"$f":"IF(AND(H58=0,H58>1200000),1,0)","v":0},"O estabelecimento NÃO tem direito a redução da taxa"]
[null,null,null,null,"Taxa do estabelecimento",{"$f":"IF($L$33=F37,F41,0)","v":2017.5},{"$f":"IF($K$33=G37,G41,0)","v":0},{"$f":"IF($K$33=H37,H41,0)","v":0},{"$f":"SUM(F42:H42)","v":2017.5},{"$f":"SUM(J38:J41)","v":0},"Fator Multiplicador"]
[null,null,null,null,"Desconto"]
[null,null,null,null,"Até 100",{"$f":"F38-F38*$J$42","v":2017.5},{"$f":"G38-G38*$J$42","v":4035},6052.5]
[null,null,null,null,"Entre 101 a 300",{"$f":"F39-F39*$J$42","v":0},0,0]
[null,null,null,null,"Acima 300",{"$f":"IF($H$60>300,ROUND(B35*$E$11*(1-$J$42),2)*$H$61,0)","v":0},{"$f":"IF($H$60>300,ROUND(C35*$E$11*(1-$J$42),2)*$H$61,0)","v":0},{"$f":"IF($H$60>300,ROUND(D35*$E$11*(1-$J$42),2)*$H$61,0)","v":0}]
[null,null,null,null,"TOTAL COM REDUÇÃO",{"$f":"SUM(F44:F46)","v":2017.5},{"$f":"SUM(G44:G46)","v":4035},6052.5]
[null,null,null,null,"Taxa do estabelecimento",{"$f":"IF($L$33=F37,F47,0)","v":2017.5},{"$f":"IF($L$33=G37,G47,0)","v":0},0,{"$f":"SUM(F48:H48)","v":2017.5}]
[]
[]
[]
[]
[]
[]
[]
[]
[]
[null,null,"Faturamento anual da empresa em VRTE:",null,null,null,null,{"$f":"E13/E11","v":0}]
[]
[null,null,"Correção da área para multiplo de 100:",null,null,null,null,{"$f":"CEILING(E15,100)","v":0}]
[null,null,"Fator de cálculo",null,null,null,null,{"$f":"(H60-300)/100","v":-3}]
[]
[]
[]
[]
[]
[]
[]
[]
[]
[]
[]
[]
[]
[]
[]
[]
[]
[]
[]
[]
[]
[]
[]
[]
[]
[]
[]
[]
[]
[]
[]
[]
[]
[]
[]
[]
[]
[]
[]
[]
[]
[]
[]
[]
[]
[]
[]
[]
[]
[]
[]
[]
[]
[]
[]
[]
[]
[]
[]
[]
[]
[]
[]
[]
[]
[]
[]
[]
[]
[]
[]
[]
[]
[]
[]
[]
[]
[]
[]
[]
[]
[]
[]
[]
[]
[]
[]
[]
[]
[]
[]
[]
[]
[]
[]
[]
[]
[]
[]
[]
[]
[]
[]
[]
[]
[]
[]
[]
[]
[]
[]
[]
[]
[]
[]
[]
[]
[]
[]
[]
[]
[]
[]
[]
[]
[]
[]
[]
[]
[]
[]
[]
[]
[]
[]
[]
[]
[]
[]
[]
[]
[]
[]
[]
[]
[]
[]
[]
[]
[]
[]
[]
[]
[]
[]
[]
[]
[]
[]
[]
[]
[]
[]
[]
[]
[]
[]
[]
[]
[]
[]
[]
[]
[]
[]
[]
[]
[null,null,null,null,null,true]

{"sheet":"TMARS","index":4,"n_rows":239,"n_cols":12,"rows_kept":239,"cut":false,"hidden":false,"merged":[[16,1,18,3],[22,11,22,16]]}
[null,{"$f":"ORIENTACAO!B1","v":"PL-001 | Versão: 04 | Data: 11/02/2021"}]
[]
[null,"SIMULAÇÃO DO VALOR DE TAXA DE MONITORAMENTO"]
[]
[]
[null,"TAXA: TAXA DE MONITORAMENTO ANUAL DO RISCO SANITÁRIO (TMARS)"]
[null,"Lei Estadual nº 7.001/2001 (Tabela V)"]
[]
[null,"Preencha os campos com as informações do estabelecimento:"]
[]
[null,"VRTE EM VIGÊNCIA:",null,null,4.0350000000000001,"consultar o valor atualizado em:"]
[]
[null,"Faturamento anual da empresa:",null,null,null,"(referente aos últimos 12 meses)"]
[]
[null,"Total da área construída (m²):",null,null,null,"m²",{"$f":"CONCATENATE(C25, \"     \",E25)","v":"       "}]
[]
[null,"Selecione o Grupo do Estabelecimento:\n(conforme critérios da Portaria Estadual SESA 107-R de 20/12/2018)\n",null,null,"Grupo I"]
[null,null,null,null,"Grupo II"]
[null,null,null,null,"Grupo III"]
[]
[null,"CRITÉRIOS CONSIDERADOS:"]
[null,null,{"$f":"IF(E15>0,IF(F40>0,E35,IF(F39>0,E34,E33)),\" \")","v":" "},null,null,null,null,null,null,null,null,"Valor da taxa a ser paga pelo estabelecimento*:"]
[null,null,{"$f":"IF(E13>0,IF(J38>0,K38,IF(J39>0,K39,IF(J40>0,K40,K41))),\" \")","v":" "},null,null,null,null,null,null,null,null,{"$f":"IF(J42>0,I48,I42)","v":2017.5}]
[null,null,"Valor da taxa (sem redução)*:",null,{"$f":"I42","v":2017.5},null,null,null,null,null,null,"*Valores aproximados"]
[null,null,{"$f":"IF(E15>300,\"Quantidade excedente (em 100 m²):\",\" \")","v":" "},null,{"$f":"IF(E15>300,ROUNDUP((E15-300)/100,0),\" \")","v":" "}]
[]
[]
[]
[]
[]
[]
[null,"Grupo I","Grupo II","Grupo III"]
[null,500,1000,1500,"Estabelecimento com área até 100 m²",null,null,"Grupo do estabelecimento:",null,null,1,{"$f":"K33","v":1}]
[null,800,1300,1800,"Estabelecimento com área de 101 até 300 m²"]
[null,50,80,100,"Estabelecimento com área acima de 300 m²"]
[null,{"$f":"ROUND(B35*$E$11,2)","v":201.75},{"$f":"ROUND(C35*$E$11,2)","v":322.8},403.5]
[null,null,null,null,"Grupo",1,2,3,null,"REDUÇÃO"]
[null,null,null,null,"Até 100",{"$f":"IF($H$60<=100,B33*$E$11,0)","v":2017.5},{"$f":"IF($H$60<=100,C33*$E$11,0)","v":4035},{"$f":"IF($H$60<=100,D33*$E$11,0)","v":6052.5},null,{"$f":"IF(AND(H58>0,H58<=144000),0.8,0)","v":0},"O estabelecimento tem direito a 80% de redução da taxa"]
[null,null,null,null,"Entre 101 a 300",{"$f":"IF($H$60>100,B34*$E$11,0)","v":0},{"$f":"IF($H$60>100,C34*$E$11,0)","v":0},{"$f":"IF($H$60>100,D34*$E$11,0)","v":0},null,{"$f":"IF(AND(H58>144000,H58<=840000),0.6,0)","v":0},"O estabelecimento tem direito a 60% de redução da taxa"]
[null,null,null,null,"Acima 300",{"$f":"IF($H$60>300,B36*$H$61,0)","v":0},{"$f":"IF($H$60>300,C36*$H$61,0)","v":0},{"$f":"IF($H$60>300,D36*$H$61,0)","v":0},null,{"$f":"IF(AND(H58>840000,H58<=1200000),0.4,0)","v":0},"O estabelecimento tem direito a 40% de redução da taxa"]
[null,null,null,null,"TOTAL SEM REDUÇÃO",{"$f":"SUM(F38:F40)","v":2017.5},{"$f":"SUM(G38:G40)","v":4035},{"$f":"SUM(H38:H40)","v":6052.5},null,{"$f":"IF(AND(H58=0,H58>1200000),1,0)","v":0},"O estabelecimento NÃO tem direito a redução da taxa"]
[null,null,null,null,"Taxa do estabelecimento",{"$f":"IF($L$33=F37,F41,0)","v":2017.5},{"$f":"IF($K$33=G37,G41,0)","v":0},{"$f":"IF($K$33=H37,H41,0)","v":0},{"$f":"SUM(F42:H42)","v":2017.5},{"$f":"SUM(J38:J41)","v":0},"Fator Multiplicador"]
[null,null,null,null,"Desconto"]
[null,null,null,null,"Até 100",{"$f":"F38-F38*$J$42","v":2017.5},{"$f":"G38-G38*$J$42","v":4035},6052.5]
[null,null,null,null,"Entre 101 a 300",{"$f":"F39-F39*$J$42","v":0},0,0]
[null,null,null,null,"Acima 300",{"$f":"IF($H$60>300,ROUND(B35*$E$11*(1-$J$42),2)*$H$61,0)","v":0},{"$f":"IF($H$60>300,ROUND(C35*$E$11*(1-$J$42),2)*$H$61,0)","v":0},{"$f":"IF($H$60>300,ROUND(D35*$E$11*(1-$J$42),2)*$H$61,0)","v":0}]
[null,null,null,null,"TOTAL COM REDUÇÃO",{"$f":"SUM(F44:F46)","v":2017.5},{"$f":"SUM(G44:G46)","v":4035},6052.5]
[null,null,null,null,"Taxa do estabelecimento",{"$f":"IF($L$33=F37,F47,0)","v":2017.5},{"$f":"IF($L$33=G37,G47,0)","v":0},0,{"$f":"SUM(F48:H48)","v":2017.5}]
[]
[]
[]
[]
[]
[]
[]
[]
[]
[null,null,"Faturamento anual da empresa em VRTE:",null,null,null,null,{"$f":"E13/E11","v":0}]
[]
[null,null,"Correção da área para multiplo de 100:",null,null,null,null,{"$f":"CEILING(E15,100)","v":0}]
[null,null,"Fator de cálculo",null,null,null,null,{"$f":"(H60-300)/100","v":-3}]
[]
[]
[]
[]
[]
[]
[]
[]
[]
[]
[]
[]
[]
[]
[]
[]
[]
[]
[]
[]
[]
[]
[]
[]
[]
[]
[]
[]
[]
[]
[]
[]
[]
[]
[]
[]
[]
[]
[]
[]
[]
[]
[]
[]
[]
[]
[]
[]
[]
[]
[]
[]
[]
[]
[]
[]
[]
[]
[]
[]
[]
[]
[]
[]
[]
[]
[]
[]
[]
[]
[]
[]
[]
[]
[]
[]
[]
[]
[]
[]
[]
[]
[]
[]
[]
[]
[]
[]
[]
[]
[]
[]
[]
[]
[]
[]
[]
[]
[]
[]
[]
[]
[]
[]
[]
[]
[]
[]
[]
[]
[]
[]
[]
[]
[]
[]
[]
[]
[]
[]
[]
[]
[]
[]
[]
[]
[]
[]
[]
[]
[]
[]
[]
[]
[]
[]
[]
[]
[]
[]
[]
[]
[]
[]
[]
[]
[]
[]
[]
[]
[]
[]
[]
[]
[]
[]
[]
[]
[]
[]
[]
[]
[]
[]
[]
[]
[]
[]
[]
[]
[]
[]
[]
[]
[]
[]
[]
[null,null,null,null,null,true]